{"text_format":"3","workbook":"xlsx","n_sheets":2,"sheets":["Werknemersrooster","Verdeling"],"not_rendered":{"defined_names":21},"read":"whole","date_system":"1900"}

{"sheet":"Werknemersrooster","index":0,"n_rows":296,"n_cols":21,"rows_kept":296,"merged":[[6,1,6,9],[66,1,66,9],[126,1,126,9],[186,1,186,9],[246,1,246,9]]}
["Werknemersdienstrooster"]
[]
[null,"TOTAAL:",null,{"$f":"SUM(4:4)","v":{"v":56,"d":"56.00"}}]
[null,"UREN:",null,{"$f":"WerknemerDagUrenTotaal","v":{"v":8,"d":"8.00"}},{"v":8,"d":"8.00"},{"v":8,"d":"8.00"},{"v":8,"d":"8.00"},{"v":8,"d":"8.00"},{"v":8,"d":"8.00"},{"v":8,"d":"8.00"},{"v":0,"d":"0.00"},{"v":0,"d":"0.00"},{"v":0,"d":"0.00"},{"v":0,"d":"0.00"},{"v":0,"d":"0.00"},{"v":0,"d":"0.00"},{"v":0,"d":"0.00"},{"v":0,"d":"0.00"},{"v":0,"d":"0.00"},{"v":0,"d":"0.00"},{"v":0,"d":"0.00"}]
[null,"WERKNEMER:",null,"Hamlin, J","Miller, B","Silva, A","Miller, B","Hansen, C","Kerr, M","Rath, A"]
[]
[null,"2012-07-16T09:00:00"]
[null,{"$f":"B7","v":41106.375},{"$nulls":5},"Vakantie"]
[null,{"$f":"Periodenweergave","v":":15"},null,"Receptie",{"$nulls":3},"Vakantie"]
[null,":30",null,"Receptie",{"$nulls":3},"Vakantie"]
[null,":45",null,"Receptie","Supervisor",null,"Klantenservice","Vakantie"]
[null,"h:07 AM",null,"Receptie","Supervisor",null,"Klantenservice","Vakantie"]
[null,":15",null,"Receptie","Supervisor",null,"Klantenservice","Vakantie"]
[null,":30",null,"Receptie","Supervisor",null,"Klantenservice","Vakantie","Boekhouding"]
[null,":45",null,"Receptie","Supervisor",null,"Klantenservice","Vakantie","Boekhouding","Conciërge"]
[null,"h:07 AM",null,"Receptie","Supervisor",null,"Klantenservice","Vakantie","Boekhouding","Conciërge"]
[null,":15",null,"Receptie","Supervisor","Leidraad","Klantenservice","Vakantie","Boekhouding","Conciërge"]
[null,":30",null,"Receptie","pauze","Leidraad","Klantenservice","Vakantie","Boekhouding","Conciërge"]
[null,":45",null,"Lunch","Supervisor","Leidraad","Klantenservice","Vakantie","Boekhouding","Conciërge"]
[null,"h:07 PM",null,"Lunch","Supervisor","Leidraad","Klantenservice","Vakantie","Boekhouding","Conciërge"]
[null,":15",null,"Receptie","Supervisor","Leidraad","Klantenservice","Vakantie","pauze","Conciërge"]
[null,":30",null,"Receptie","Supervisor","pauze","Klantenservice","Vakantie","Telefoon","pauze"]
[null,":45",null,"Receptie","Supervisor","Leidraad","Klantenservice","Vakantie","Telefoon","Conciërge"]
[null,"h:07 PM",null,"Receptie","Supervisor","Leidraad","Klantenservice","Vakantie","Telefoon","Conciërge"]
[null,":15",null,"Receptie","Supervisor","Leidraad","Lunch","Vakantie","Telefoon","Conciërge"]
[null,":30",null,null,"Supervisor","Leidraad","Lunch","Vakantie","Telefoon","Conciërge"]
[null,":45",null,null,"Supervisor","Leidraad","Lunch","Vakantie","Lunch","Conciërge"]
[null,"h:07 PM",null,"Kassier","Lunch","Leidraad","Lunch","Vakantie","Lunch","Conciërge"]
[null,":15",null,"Kassier","Lunch","Leidraad","Klantenservice","Vakantie","Telefoon","Conciërge"]
[null,":30",null,"Kassier","Lunch","Lunch","Klantenservice","Vakantie","Telefoon","Lunch"]
[null,":45",null,"Kassier","Lunch","Lunch","Klantenservice","Vakantie","Telefoon","Lunch"]
[null,"h:07 PM",null,"Kassier","Beveiliging","Lunch","Klantenservice","Vakantie","Telefoon","Lunch"]
[null,":15",null,"Kassier","Beveiliging","Lunch","Klantenservice","Vakantie","Telefoon","Lunch"]
[null,":30",null,"Kassier","Beveiliging","Leidraad","Klantenservice","Vakantie","Telefoon","Sluiten"]
[null,":45",null,"Kassier","Beveiliging","Leidraad","Klantenservice","Vakantie","Telefoon","Sluiten"]
[null,"h:07 PM",null,"Kassier","Beveiliging","Leidraad","Klantenservice","Vakantie","pauze","Sluiten"]
[null,":15",null,"pauze","Beveiliging","Leidraad","pauze","Vakantie","Telefoon","Sluiten"]
[null,":30",null,"Kassier","Beveiliging","Leidraad","Klantenservice","Vakantie","Telefoon","Sluiten"]
[null,":45",null,"Kassier","Beveiliging","Leidraad","Klantenservice","Vakantie","Telefoon","Sluiten"]
[null,"h:07 PM",null,"Kassier","Beveiliging","Leidraad","Klantenservice",null,"Telefoon","Sluiten"]
[null,":15",null,"Kassier","Beveiliging","Leidraad","Klantenservice",null,"Telefoon","Sluiten"]
[null,":30",null,"Kassier","Beveiliging","Leidraad","Klantenservice",null,"Telefoon","Sluiten"]
[null,":45",null,"Kassier","Beveiliging","Leidraad","Klantenservice",null,"Telefoon","Sluiten"]
[null,"h:07 PM",null,"Kassier","Beveiliging","Leidraad","Klantenservice",null,"Telefoon","Sluiten"]
[null,":15",null,"Kassier","Beveiliging","Leidraad","Klantenservice",null,"Telefoon","Sluiten"]
[null,":30",null,null,"Beveiliging","Leidraad","Klantenservice",null,"Telefoon","Sluiten"]
[null,":45",null,null,"Beveiliging","pauze","Klantenservice",null,"Telefoon","pauze"]
[null,"h:07 PM",{"$nulls":3},"Leidraad",null,null,"Telefoon","Sluiten"]
[null,":15",{"$nulls":3},"Leidraad",null,null,"Telefoon","Sluiten"]
[null,":30",{"$nulls":3},"Leidraad",{"$nulls":3},"Sluiten"]
[null,":45",{"$nulls":3},"Leidraad",{"$nulls":3},"Sluiten"]
[null,"h:07 PM",{"$nulls":3},"Leidraad",{"$nulls":3},"Sluiten"]
[null,":15",{"$nulls":3},"Leidraad"]
[null,":30",{"$nulls":3},"Leidraad"]
[null,":45"]
[null,"h:07 PM"]
[]
[]
[]
[]
["Werknemersrooster"]
[]
[null,"TOTAAL:",null,{"$f":"SUM(64:64)","v":{"v":56,"d":"56.00"}}]
[null,"UREN:",null,{"$f":"WerknemerDagUrenTotaal","v":{"v":8,"d":"8.00"}},{"v":8,"d":"8.00"},{"v":8,"d":"8.00"},{"v":8,"d":"8.00"},{"v":8,"d":"8.00"},{"v":8,"d":"8.00"},{"v":8,"d":"8.00"},{"v":0,"d":"0.00"},{"v":0,"d":"0.00"},{"v":0,"d":"0.00"},{"v":0,"d":"0.00"},{"v":0,"d":"0.00"},{"v":0,"d":"0.00"},{"v":0,"d":"0.00"},{"v":0,"d":"0.00"},{"v":0,"d":"0.00"},{"v":0,"d":"0.00"},{"v":0,"d":"0.00"}]
[null,"WERKNEMER:",null,"Hamlin, J","Miller, B","Silva, A","Park, D","Hansen, C","Kerr, M","Rath, A"]
[]
[null,{"$f":"B7+1","v":"2012-07-17T09:00:00"}]
[null,{"$f":"B67","v":41107.375},{"$nulls":5},"Vakantie"]
[null,{"$f":"Periodenweergave","v":":15"},null,"Receptie",{"$nulls":3},"Vakantie"]
[null,":30",null,"Receptie",{"$nulls":3},"Vakantie"]
[null,":45",null,"Receptie","Supervisor",null,"Klantenservice","Vakantie"]
[null,"h:07 AM",null,"Receptie","Supervisor",null,"Klantenservice","Vakantie"]
[null,":15",null,"Receptie","Supervisor",null,"Klantenservice","Vakantie"]
[null,":30",null,"Receptie","Supervisor",null,"Klantenservice","Vakantie","Boekhouding"]
[null,":45",null,"Receptie","Supervisor",null,"Klantenservice","Vakantie","Boekhouding","Conciërge"]
[null,"h:07 AM",null,"Receptie","Supervisor",null,"Klantenservice","Vakantie","Boekhouding","Conciërge"]
[null,":15",null,"Receptie","Supervisor","Leidraad","Klantenservice","Vakantie","Boekhouding","Conciërge"]
[null,":30",null,"Receptie","pauze","Leidraad","Klantenservice","Vakantie","Boekhouding","Conciërge"]
[null,":45",null,"Lunch","Supervisor","Leidraad","Klantenservice","Vakantie","Boekhouding","Conciërge"]
[null,"h:07 AM",null,"Lunch","Supervisor","Leidraad","Klantenservice","Vakantie","Boekhouding","Conciërge"]
[null,":15",null,"Receptie","Supervisor","Leidraad","Klantenservice","Vakantie","pauze","Conciërge"]
[null,":30",null,"Receptie","Supervisor","pauze","Klantenservice","Vakantie","Telefoon","pauze"]
[null,":45",null,"Receptie","Supervisor","Leidraad","Klantenservice","Vakantie","Telefoon","Conciërge"]
[null,"h:07 AM",null,"Receptie","Supervisor","Leidraad","Klantenservice","Vakantie","Telefoon","Conciërge"]
[null,":15",null,"Receptie","Supervisor","Leidraad","Lunch","Vakantie","Telefoon","Conciërge"]
[null,":30",null,null,"Supervisor","Leidraad","Lunch","Vakantie","Telefoon","Conciërge"]
[null,":45",null,null,"Supervisor","Leidraad","Lunch","Vakantie","Lunch","Conciërge"]
[null,"h:07 AM",null,"Kassier","Lunch","Leidraad","Lunch","Vakantie","Lunch","Conciërge"]
[null,":15",null,"Kassier","Lunch","Leidraad","Klantenservice","Vakantie","Telefoon","Conciërge"]
[null,":30",null,"Kassier","Lunch","Lunch","Klantenservice","Vakantie","Telefoon","Lunch"]
[null,":45",null,"Kassier","Lunch","Lunch","Klantenservice","Vakantie","Telefoon","Lunch"]
[null,"h:07 AM",null,"Kassier","Beveiliging","Lunch","Klantenservice","Vakantie","Telefoon","Lunch"]
[null,":15",null,"Kassier","Beveiliging","Lunch","Klantenservice","Vakantie","Telefoon","Lunch"]
[null,":30",null,"Kassier","Beveiliging","Leidraad","Klantenservice","Vakantie","Telefoon","Sluiten"]
[null,":45",null,"Kassier","Beveiliging","Leidraad","Klantenservice","Vakantie","Telefoon","Sluiten"]
[null,"h:07 AM",null,"Kassier","Beveiliging","Leidraad","Klantenservice","Vakantie","pauze","Sluiten"]
[null,":15",null,"pauze","Beveiliging","Leidraad","pauze","Vakantie","Telefoon","Sluiten"]
[null,":30",null,"Kassier","Beveiliging","Leidraad","Klantenservice","Vakantie","Telefoon","Sluiten"]
[null,":45",null,"Kassier","Beveiliging","Leidraad","Klantenservice","Vakantie","Telefoon","Sluiten"]
[null,"h:07 AM",null,"Kassier","Beveiliging","Leidraad","Klantenservice",null,"Telefoon","Sluiten"]
[null,":15",null,"Kassier","Beveiliging","Leidraad","Klantenservice",null,"Telefoon","Sluiten"]
[null,":30",null,"Kassier","Beveiliging","Leidraad","Klantenservice",null,"Telefoon","Sluiten"]
[null,":45",null,"Kassier","Beveiliging","Leidraad","Klantenservice",null,"Telefoon","Sluiten"]
[null,"h:07 AM",null,"Kassier","Beveiliging","Leidraad","Klantenservice",null,"Telefoon","Sluiten"]
[null,":15",null,"Kassier","Beveiliging","Leidraad","Klantenservice",null,"Telefoon","Sluiten"]
[null,":30",null,null,"Beveiliging","Leidraad","Klantenservice",null,"Telefoon","Sluiten"]
[null,":45",null,null,"Beveiliging","pauze","Klantenservice",null,"Telefoon","pauze"]
[null,"h:07 AM",{"$nulls":3},"Leidraad",null,null,"Telefoon","Sluiten"]
[null,":15",{"$nulls":3},"Leidraad",null,null,"Telefoon","Sluiten"]
[null,":30",{"$nulls":3},"Leidraad",{"$nulls":3},"Sluiten"]
[null,":45",{"$nulls":3},"Leidraad",{"$nulls":3},"Sluiten"]
[null,"h:07 AM",{"$nulls":3},"Leidraad",{"$nulls":3},"Sluiten"]
[null,":15",{"$nulls":3},"Leidraad"]
[null,":30",{"$nulls":3},"Leidraad"]
[null,":45"]
[null,"h:07 PM"]
[]
[]
[]
[]
["Werknemersrooster"]
[]
[null,"TOTAAL:",null,{"$f":"SUM(124:124)","v":{"v":56,"d":"56.00"}}]
[null,"UREN:",null,{"$f":"WerknemerDagUrenTotaal","v":{"v":8,"d":"8.00"}},{"v":8,"d":"8.00"},{"v":8,"d":"8.00"},{"v":8,"d":"8.00"},{"v":8,"d":"8.00"},{"v":8,"d":"8.00"},{"v":8,"d":"8.00"},{"v":0,"d":"0.00"},{"v":0,"d":"0.00"},{"v":0,"d":"0.00"},{"v":0,"d":"0.00"},{"v":0,"d":"0.00"},{"v":0,"d":"0.00"},{"v":0,"d":"0.00"},{"v":0,"d":"0.00"},{"v":0,"d":"0.00"},{"v":0,"d":"0.00"},{"v":0,"d":"0.00"}]
[null,"WERKNEMER:",null,"Hamlin, J","Miller, B","Silva, A","Park, D","Hansen, C","Kerr, M","Rath, A"]
[]
[null,{"$f":"B67+1","v":"2012-07-18T09:00:00"}]
[null,{"$f":"B127","v":41108.375},{"$nulls":5},"Vakantie"]
[null,{"$f":"Periodenweergave","v":":15"},null,"Receptie",{"$nulls":3},"Vakantie"]
[null,":30",null,"Receptie",{"$nulls":3},"Vakantie"]
[null,":45",null,"Receptie","Supervisor",null,"Klantenservice","Vakantie"]
[null,"h:07 PM",null,"Receptie","Supervisor",null,"Klantenservice","Vakantie"]
[null,":15",null,"Receptie","Supervisor",null,"Klantenservice","Vakantie"]
[null,":30",null,"Receptie","Supervisor",null,"Klantenservice","Vakantie","Boekhouding"]
[null,":45",null,"Receptie","Supervisor",null,"Klantenservice","Vakantie","Boekhouding","Conciërge"]
[null,"h:07 PM",null,"Receptie","Supervisor",null,"Klantenservice","Vakantie","Boekhouding","Conciërge"]
[null,":15",null,"Receptie","Supervisor","Leidraad","Klantenservice","Vakantie","Boekhouding","Conciërge"]
[null,":30",null,"Receptie","pauze","Leidraad","Klantenservice","Vakantie","Boekhouding","Conciërge"]
[null,":45",null,"Lunch","Supervisor","Leidraad","Klantenservice","Vakantie","Boekhouding","Conciërge"]
[null,"h:07 PM",null,"Lunch","Supervisor","Leidraad","Klantenservice","Vakantie","Boekhouding","Conciërge"]
[null,":15",null,"Receptie","Supervisor","Leidraad","Klantenservice","Vakantie","pauze","Conciërge"]
[null,":30",null,"Receptie","Supervisor","pauze","Klantenservice","Vakantie","Telefoon","pauze"]
[null,":45",null,"Receptie","Supervisor","Leidraad","Klantenservice","Vakantie","Telefoon","Conciërge"]
[null,"h:07 PM",null,"Receptie","Supervisor","Leidraad","Klantenservice","Vakantie","Telefoon","Conciërge"]
[null,":15",null,"Receptie","Supervisor","Leidraad","Lunch","Vakantie","Telefoon","Conciërge"]
[null,":30",null,null,"Supervisor","Leidraad","Lunch","Vakantie","Telefoon","Conciërge"]
[null,":45",null,null,"Supervisor","Leidraad","Lunch","Vakantie","Lunch","Conciërge"]
[null,"h:07 PM",null,"Kassier","Lunch","Leidraad","Lunch","Vakantie","Lunch","Conciërge"]
[null,":15",null,"Kassier","Lunch","Leidraad","Klantenservice","Vakantie","Telefoon","Conciërge"]
[null,":30",null,"Kassier","Lunch","Lunch","Klantenservice","Vakantie","Telefoon","Lunch"]
[null,":45",null,"Kassier","Lunch","Lunch","Klantenservice","Vakantie","Telefoon","Lunch"]
[null,"h:07 PM",null,"Kassier","Beveiliging","Lunch","Klantenservice","Vakantie","Telefoon","Lunch"]
[null,":15",null,"Kassier","Beveiliging","Lunch","Klantenservice","Vakantie","Telefoon","Lunch"]
[null,":30",null,"Kassier","Beveiliging","Leidraad","Klantenservice","Vakantie","Telefoon","Sluiten"]
[null,":45",null,"Kassier","Beveiliging","Leidraad","Klantenservice","Vakantie","Telefoon","Sluiten"]
[null,"h:07 PM",null,"Kassier","Beveiliging","Leidraad","Klantenservice","Vakantie","pauze","Sluiten"]
[null,":15",null,"pauze","Beveiliging","Leidraad","pauze","Vakantie","Telefoon","Sluiten"]
[null,":30",null,"Kassier","Beveiliging","Leidraad","Klantenservice","Vakantie","Telefoon","Sluiten"]
[null,":45",null,"Kassier","Beveiliging","Leidraad","Klantenservice","Vakantie","Telefoon","Sluiten"]
[null,"h:07 PM",null,"Kassier","Beveiliging","Leidraad","Klantenservice",null,"Telefoon","Sluiten"]
[null,":15",null,"Kassier","Beveiliging","Leidraad","Klantenservice",null,"Telefoon","Sluiten"]
[null,":30",null,"Kassier","Beveiliging","Leidraad","Klantenservice",null,"Telefoon","Sluiten"]
[null,":45",null,"Kassier","Beveiliging","Leidraad","Klantenservice",null,"Telefoon","Sluiten"]
[null,"h:07 AM",null,"Kassier","Beveiliging","Leidraad","Klantenservice",null,"Telefoon","Sluiten"]
[null,":15",null,"Kassier","Beveiliging","Leidraad","Klantenservice",null,"Telefoon","Sluiten"]
[null,":30",null,null,"Beveiliging","Leidraad","Klantenservice",null,"Telefoon","Sluiten"]
[null,":45",null,null,"Beveiliging","pauze","Klantenservice",null,"Telefoon","pauze"]
[null,"h:07 AM",{"$nulls":3},"Leidraad",null,null,"Telefoon","Sluiten"]
[null,":15",{"$nulls":3},"Leidraad",null,null,"Telefoon","Sluiten"]
[null,":30",{"$nulls":3},"Leidraad",{"$nulls":3},"Sluiten"]
[null,":45",{"$nulls":3},"Leidraad",{"$nulls":3},"Sluiten"]
[null,"h:07 AM",{"$nulls":3},"Leidraad",{"$nulls":3},"Sluiten"]
[null,":15",{"$nulls":3},"Leidraad"]
[null,":30",{"$nulls":3},"Leidraad"]
[null,":45"]
[null,"h:07 AM"]
[]
[]
[]
[]
["Werknemersrooster"]
[]
[null,"TOTAAL:",null,{"$f":"SUM(184:184)","v":{"v":56,"d":"56.00"}}]
[null,"UREN:",null,{"$f":"WerknemerDagUrenTotaal","v":{"v":8,"d":"8.00"}},{"v":8,"d":"8.00"},{"v":8,"d":"8.00"},{"v":8,"d":"8.00"},{"v":8,"d":"8.00"},{"v":8,"d":"8.00"},{"v":8,"d":"8.00"},{"v":0,"d":"0.00"},{"v":0,"d":"0.00"},{"v":0,"d":"0.00"},{"v":0,"d":"0.00"},{"v":0,"d":"0.00"},{"v":0,"d":"0.00"},{"v":0,"d":"0.00"},{"v":0,"d":"0.00"},{"v":0,"d":"0.00"},{"v":0,"d":"0.00"},{"v":0,"d":"0.00"}]
[null,"WERKNEMER:",null,"Hamlin, J","Miller, B","Silva, A","Park, D","Hansen, C","Kerr, M","Rath, A"]
[]
[null,{"$f":"B127+1","v":"2012-07-19T09:00:00"}]
[null,{"$f":"B187","v":41109.375},{"$nulls":5},"Vakantie"]
[null,{"$f":"Periodenweergave","v":":15"},null,"Receptie",{"$nulls":3},"Vakantie"]
[null,":30",null,"Receptie",{"$nulls":3},"Vakantie"]
[null,":45",null,"Receptie","Supervisor",null,"Klantenservice","Vakantie"]
[null,"h:07 AM",null,"Receptie","Supervisor",null,"Klantenservice","Vakantie"]
[null,":15",null,"Receptie","Supervisor",null,"Klantenservice","Vakantie"]
[null,":30",null,"Receptie","Supervisor",null,"Klantenservice","Vakantie","Boekhouding"]
[null,":45",null,"Receptie","Supervisor",null,"Klantenservice","Vakantie","Boekhouding","Conciërge"]
[null,"h:07 AM",null,"Receptie","Supervisor",null,"Klantenservice","Vakantie","Boekhouding","Conciërge"]
[null,":15",null,"Receptie","Supervisor","Leidraad","Klantenservice","Vakantie","Boekhouding","Conciërge"]
[null,":30",null,"Receptie","pauze","Leidraad","Klantenservice","Vakantie","Boekhouding","Conciërge"]
[null,":45",null,"Lunch","Supervisor","Leidraad","Klantenservice","Vakantie","Boekhouding","Conciërge"]
[null,"h:07 AM",null,"Lunch","Supervisor","Leidraad","Klantenservice","Vakantie","Boekhouding","Conciërge"]
[null,":15",null,"Receptie","Supervisor","Leidraad","Klantenservice","Vakantie","pauze","Conciërge"]
[null,":30",null,"Receptie","Supervisor","pauze","Klantenservice","Vakantie","Telefoon","pauze"]
[null,":45",null,"Receptie","Supervisor","Leidraad","Klantenservice","Vakantie","Telefoon","Conciërge"]
[null,"h:07 AM",null,"Receptie","Supervisor","Leidraad","Klantenservice","Vakantie","Telefoon","Conciërge"]
[null,":15",null,"Receptie","Supervisor","Leidraad","Lunch","Vakantie","Telefoon","Conciërge"]
[null,":30",null,null,"Supervisor","Leidraad","Lunch","Vakantie","Telefoon","Conciërge"]
[null,":45",null,null,"Supervisor","Leidraad","Lunch","Vakantie","Lunch","Conciërge"]
[null,"h:07 AM",null,"Kassier","Lunch","Leidraad","Lunch","Vakantie","Lunch","Conciërge"]
[null,":15",null,"Kassier","Lunch","Leidraad","Klantenservice","Vakantie","Telefoon","Conciërge"]
[null,":30",null,"Kassier","Lunch","Lunch","Klantenservice","Vakantie","Telefoon","Lunch"]
[null,":45",null,"Kassier","Lunch","Lunch","Klantenservice","Vakantie","Telefoon","Lunch"]
[null,"h:07 PM",null,"Kassier","Beveiliging","Lunch","Klantenservice","Vakantie","Telefoon","Lunch"]
[null,":15",null,"Kassier","Beveiliging","Lunch","Klantenservice","Vakantie","Telefoon","Lunch"]
[null,":30",null,"Kassier","Beveiliging","Leidraad","Klantenservice","Vakantie","Telefoon","Sluiten"]
[null,":45",null,"Kassier","Beveiliging","Leidraad","Klantenservice","Vakantie","Telefoon","Sluiten"]
[null,"h:07 PM",null,"Kassier","Beveiliging","Leidraad","Klantenservice","Vakantie","pauze","Sluiten"]
[null,":15",null,"pauze","Beveiliging","Leidraad","pauze","Vakantie","Telefoon","Sluiten"]
[null,":30",null,"Kassier","Beveiliging","Leidraad","Klantenservice","Vakantie","Telefoon","Sluiten"]
[null,":45",null,"Kassier","Beveiliging","Leidraad","Klantenservice","Vakantie","Telefoon","Sluiten"]
[null,"h:07 PM",null,"Kassier","Beveiliging","Leidraad","Klantenservice",null,"Telefoon","Sluiten"]
[null,":15",null,"Kassier","Beveiliging","Leidraad","Klantenservice",null,"Telefoon","Sluiten"]
[null,":30",null,"Kassier","Beveiliging","Leidraad","Klantenservice",null,"Telefoon","Sluiten"]
[null,":45",null,"Kassier","Beveiliging","Leidraad","Klantenservice",null,"Telefoon","Sluiten"]
[null,"h:07 PM",null,"Kassier","Beveiliging","Leidraad","Klantenservice",null,"Telefoon","Sluiten"]
[null,":15",null,"Kassier","Beveiliging","Leidraad","Klantenservice",null,"Telefoon","Sluiten"]
[null,":30",null,null,"Beveiliging","Leidraad","Klantenservice",null,"Telefoon","Sluiten"]
[null,":45",null,null,"Beveiliging","pauze","Klantenservice",null,"Telefoon","pauze"]
[null,"h:07 PM",{"$nulls":3},"Leidraad",null,null,"Telefoon","Sluiten"]
[null,":15",{"$nulls":3},"Leidraad",null,null,"Telefoon","Sluiten"]
[null,":30",{"$nulls":3},"Leidraad",{"$nulls":3},"Sluiten"]
[null,":45",{"$nulls":3},"Leidraad",{"$nulls":3},"Sluiten"]
[null,"h:07 PM",{"$nulls":3},"Leidraad",{"$nulls":3},"Sluiten"]
[null,":15",{"$nulls":3},"Leidraad"]
[null,":30",{"$nulls":3},"Leidraad"]
[null,":45"]
[null,"h:07 PM"]
[]
[]
[]
[]
["Werknemersrooster"]
[]
[null,"TOTAAL:",null,{"$f":"SUM(244:244)","v":{"v":56,"d":"56.00"}}]
[null,"UREN:",null,{"$f":"WerknemerDagUrenTotaal","v":{"v":8,"d":"8.00"}},{"v":8,"d":"8.00"},{"v":8,"d":"8.00"},{"v":8,"d":"8.00"},{"v":8,"d":"8.00"},{"v":8,"d":"8.00"},{"v":8,"d":"8.00"},{"v":0,"d":"0.00"},{"v":0,"d":"0.00"},{"v":0,"d":"0.00"},{"v":0,"d":"0.00"},{"v":0,"d":"0.00"},{"v":0,"d":"0.00"},{"v":0,"d":"0.00"},{"v":0,"d":"0.00"},{"v":0,"d":"0.00"},{"v":0,"d":"0.00"},{"v":0,"d":"0.00"}]
[null,"WERKNEMER:",null,"Hamlin, J","Miller, B","Silva, A","Park, D","Hansen, C","Kerr, M","Rath, A"]
[]
[null,{"$f":"B187+1","v":"2012-07-20T09:00:00"}]
[null,{"$f":"B247","v":41110.375},{"$nulls":5},"Vakantie"]
[null,{"$f":"Periodenweergave","v":":15"},null,"Receptie",{"$nulls":3},"Vakantie"]
[null,":30",null,"Receptie",{"$nulls":3},"Vakantie"]
[null,":45",null,"Receptie","Supervisor",null,"Klantenservice","Vakantie"]
[null,"h:07 PM",null,"Receptie","Supervisor",null,"Klantenservice","Vakantie"]
[null,":15",null,"Receptie","Supervisor",null,"Klantenservice","Vakantie"]
[null,":30",null,"Receptie","Supervisor",null,"Klantenservice","Vakantie","Boekhouding"]
[null,":45",null,"Receptie","Supervisor",null,"Klantenservice","Vakantie","Boekhouding","Conciërge"]
[null,"h:07 PM",null,"Receptie","Supervisor",null,"Klantenservice","Vakantie","Boekhouding","Conciërge"]
[null,":15",null,"Receptie","Supervisor","Leidraad","Klantenservice","Vakantie","Boekhouding","Conciërge"]
[null,":30",null,"Receptie","pauze","Leidraad","Klantenservice","Vakantie","Boekhouding","Conciërge"]
[null,":45",null,"Lunch","Supervisor","Leidraad","Klantenservice","Vakantie","Boekhouding","Conciërge"]
[null,"h:07 AM",null,"Lunch","Supervisor","Leidraad","Klantenservice","Vakantie","Boekhouding","Conciërge"]
[null,":15",null,"Receptie","Supervisor","Leidraad","Klantenservice","Vakantie","pauze","Conciërge"]
[null,":30",null,"Receptie","Supervisor","pauze","Klantenservice","Vakantie","Telefoon","pauze"]
[null,":45",null,"Receptie","Supervisor","Leidraad","Klantenservice","Vakantie","Telefoon","Conciërge"]
[null,"h:07 AM",null,"Receptie","Supervisor","Leidraad","Klantenservice","Vakantie","Telefoon","Conciërge"]
[null,":15",null,"Receptie","Supervisor","Leidraad","Lunch","Vakantie","Telefoon","Conciërge"]
[null,":30",null,null,"Supervisor","Leidraad","Lunch","Vakantie","Telefoon","Conciërge"]
[null,":45",null,null,"Supervisor","Leidraad","Lunch","Vakantie","Lunch","Conciërge"]
[null,"h:07 AM",null,"Kassier","Lunch","Leidraad","Lunch","Vakantie","Lunch","Conciërge"]
[null,":15",null,"Kassier","Lunch","Leidraad","Klantenservice","Vakantie","Telefoon","Conciërge"]
[null,":30",null,"Kassier","Lunch","Lunch","Klantenservice","Vakantie","Telefoon","Lunch"]
[null,":45",null,"Kassier","Lunch","Lunch","Klantenservice","Vakantie","Telefoon","Lunch"]
[null,"h:07 AM",null,"Kassier","Beveiliging","Lunch","Klantenservice","Vakantie","Telefoon","Lunch"]
[null,":15",null,"Kassier","Beveiliging","Lunch","Klantenservice","Vakantie","Telefoon","Lunch"]
[null,":30",null,"Kassier","Beveiliging","Leidraad","Klantenservice","Vakantie","Telefoon","Sluiten"]
[null,":45",null,"Kassier","Beveiliging","Leidraad","Klantenservice","Vakantie","Telefoon","Sluiten"]
[null,"h:07 AM",null,"Kassier","Beveiliging","Leidraad","Klantenservice","Vakantie","pauze","Sluiten"]
[null,":15",null,"pauze","Beveiliging","Leidraad","pauze","Vakantie","Telefoon","Sluiten"]
[null,":30",null,"Kassier","Beveiliging","Leidraad","Klantenservice","Vakantie","Telefoon","Sluiten"]
[null,":45",null,"Kassier","Beveiliging","Leidraad","Klantenservice","Vakantie","Telefoon","Sluiten"]
[null,"h:07 AM",null,"Kassier","Beveiliging","Leidraad","Klantenservice",null,"Telefoon","Sluiten"]
[null,":15",null,"Kassier","Beveiliging","Leidraad","Klantenservice",null,"Telefoon","Sluiten"]
[null,":30",null,"Kassier","Beveiliging","Leidraad","Klantenservice",null,"Telefoon","Sluiten"]
[null,":45",null,"Kassier","Beveiliging","Leidraad","Klantenservice",null,"Telefoon","Sluiten"]
[null,"h:07 AM",null,"Kassier","Beveiliging","Leidraad","Klantenservice",null,"Telefoon","Sluiten"]
[null,":15",null,"Kassier","Beveiliging","Leidraad","Klantenservice",null,"Telefoon","Sluiten"]
[null,":30",null,null,"Beveiliging","Leidraad","Klantenservice",null,"Telefoon","Sluiten"]
[null,":45",null,null,"Beveiliging","pauze","Klantenservice",null,"Telefoon","pauze"]
[null,"h:07 AM",{"$nulls":3},"Leidraad",null,null,"Telefoon","Sluiten"]
[null,":15",{"$nulls":3},"Leidraad",null,null,"Telefoon","Sluiten"]
[null,":30",{"$nulls":3},"Leidraad",{"$nulls":3},"Sluiten"]
[null,":45",{"$nulls":3},"Leidraad",{"$nulls":3},"Sluiten"]
[null,"h:07 AM",{"$nulls":3},"Leidraad",{"$nulls":3},"Sluiten"]
[null,":15",{"$nulls":3},"Leidraad"]
[null,":30",{"$nulls":3},"Leidraad"]
[null,":45"]
[null,"h:07 AM"]

{"sheet":"Verdeling","index":1,"n_rows":26,"n_cols":7,"rows_kept":26}
[null,"Verdeling"]
[]
[]
[null,"INVOER VOOR TOESLAGEN PER UUR",4]
[]
[]
[]
[]
[]
[null,"Werknemers",null,"Functie/vrije tijd","Kleur","Betaling","Gehele dag"]
[null,"Hamlin, J",null,"Lunch",1,false,false]
[null,"Hansen, C",null,"pauze",1,false,false]
[null,"Kerr, M",null,"Met",1,false,true]
[null,"Levin, D",null,"ziekteverlof",1,false,true]
[null,"Miller, B",null,"ADV-dag",1,true,true]
[null,"Park, D",null,"Vakantie",1,true,true]
[null,"Rath, A",null,"Receptie",2,true,false]
[null,"Silva, A",null,"Kassier",3,true,false]
[{"$nulls":3},"Supervisor",4,true,false]
[{"$nulls":3},"Leidraad",5,true,false]
[{"$nulls":3},"Klantenservice",6,true,false]
[{"$nulls":3},"Telefoon",7,true,false]
[{"$nulls":3},"Beveiliging",8,true,false]
[{"$nulls":3},"Conciërge",9,true,false]
[{"$nulls":3},"Boekhouding",10,true,false]
[{"$nulls":3},"Sluiten",11,true,false]